Cogmind - Beta 9.6 @@@ ROGUE MODE // 2020.08.21 @ 12:05:33 Player: Exp. Geonium Core Result: Destroyed by G-47 Trooper with Particle Gun Performance ------------- Evolutions (2) 1000 Regions Visited (5) 1000 Robots Destroyed (17) 85 Value Destroyed (471) 471 Prototype IDs (0) 0 Alien Tech Used (0) 0 Bonus (700) 700 TOTAL SCORE: 3256 Bonus ------- Entered Garrisons 200 Used RIF Installer 500 Cogmind --------- Core Integrity 0/550 Matter 280/300 Energy 100/100 System Corruption 0% Temperature Cool (9) Movement Core (50) Location -8/Materials Parts ------- > --- POWER (1) -------- (None) > --- PROPULSION (6) --- Aluminum Leg Aluminum Leg Aluminum Leg > --- UTILITY (2) ------ (None) > --- WEAPON (2) ------- Axe > --- INVENTORY (4) ---- Weight Redist. System Hardened Medium Armor Plating Particle Gun Axe Peak State ------------ > --- POWER ------------ (None) > --- PROPULSION ------- Light Treads Light Treads Light Treads Light Treads Light Treads Aluminum Leg > --- UTILITY ---------- Weight Redist. System Advanced Visual Processing Unit > --- WEAPON ----------- Axe Axe > --- INVENTORY -------- Axe Axe [Rating: 17] Favorites ----------- Power Ion Engine Engine Ion Engine Propulsion Light Treads Treads Light Treads Leg Aluminum Leg Utility Weight Redist. System Device Weight Redist. System Processor Advanced Visual Processing Unit Protection Hardened Medium Armor Plating Weapon Axe Energy Gun Beam Rifle Ballistic Gun Light Assault Rifle Ballistic Cannon Light Cannon Slashing Weapon Axe Build | -11 -10 -9 -8 -8 -8 ------- Run | Scr Mat Mat Mat Gar Mat Slots Evolved 4 | . . 2 2 . . Power . | . . . . . . Propulsion 4 | . . 2 2 . . Utility . | . . . . . . Weapon . | . . . . . . Parts Attached 30 | 2 3 5 3 17 . Power 1 | . 1 . . . . Engine 1 | . 1 . . . . Core . | . . . . . . Reactor . | . . . . . . Propulsion 11 | 2 . 2 3 4 . Treads 7 | 2 . 2 2 1 . Leg 4 | . . . 1 3 . Wheel . | . . . . . . Hover . | . . . . . . Flight . | . . . . . . Utility 4 | . 1 1 . 2 . Device 1 | . 1 . . . . Storage . | . . . . . . Processor 1 | . . 1 . . . Hackware . | . . . . . . Protection 2 | . . . . 2 . Artifact . | . . . . . . Weapon 14 | . 1 2 . 11 . Energy Gun 2 | . . . . 2 . Energy Cannon . | . . . . . . Ballistic Gun 5 | . . . . 5 . Ballistic Cannon 1 | . 1 . . . . Launcher . | . . . . . . Special Weapon . | . . . . . . Impact Weapon . | . . . . . . Slashing Weapon 6 | . . 2 . 4 . Piercing Weapon . | . . . . . . Special Melee Weapon . | . . . . . . Unidentified Prototypes . | . . . . . . Parts Lost 13 | . . 1 . 12 . Power 1 | . . 1 . . . Propulsion 7 | . . . . 7 . Utility . | . . . . . . Weapon 5 | . . . . 5 . Highest Loss Streak 11 | . . 1 . 11 . Average Slot Usage (%) 53 | . 61 82 81 44 36 Engine 3 | . 10 10 . . . Treads 19 | . 28 44 45 11 . Leg 9 | . . . 9 11 27 Device 6 | . 11 11 9 4 . Processor 3 | . . 3 9 4 . Ballistic Gun 1 | . . . . 2 . Ballistic Cannon 2 | . 10 6 . . . Slashing Weapon 5 | . . 7 9 7 9 Naked Turns . | . . . . . . Heaviest Build 16 | . 8 11 6 16 3 Greatest Support 100 | 20 9 86 9 100 30 Greatest Overweight (x) 5 | . . 1 . 5 . Average Overweight (x) . | . . . . . . Largest Inventory Capacity 4 | 4 4 4 4 4 4 Average Capacity 4 | 4 4 4 4 4 4 Most Carried 4 | 4 4 4 4 4 4 Average Carried 3 | 1 3 2 3 3 4 Final Capacity 4 | 4 4 4 4 4 4 Final Carried 4 | 4 4 4 4 4 4 Class Distribution -------------------- 84% | Mutant 15% | Scavenger-Mutant Dominant Class ---------------- Mutant | -10/Materials Mutant | -9/Materials Mutant | -8/Materials Mutant | -8/Garrison Mutant | -8/Materials Resources | -11 -10 -9 -8 -8 -8 ----------- Run | Scr Mat Mat Mat Gar Mat Matter Collected 494 | 147 58 27 55 207 . Remotely . | . . . . . . Salvage Created 567 | . 58 63 56 390 . Parts 40 | . 5 1 4 30 . Haulers Intercepted 1 | . 1 . . . . Recyclers Shooed . | . . . . . . Parts Field Recycled . | . . . . . . Retrieved Matter . | . . . . . . Parts Self-Destructed . | . . . . . . Prevented . | . . . . . . Kills | -11 -10 -9 -8 -8 -8 ------- Run | Scr Mat Mat Mat Gar Mat Combat Hostiles Destroyed 16 | . . 2 1 13 . Melee 6 | . . 2 1 3 . Guns 10 | . . . . 10 . Classes Destroyed 5 | . 1 1 1 2 . Hauler 1 | . 1 . . . . Swarmer 7 | . . . . 7 . Grunt 5 | . . 2 . 3 . Sentry 3 | . . . 1 2 . Hunter 1 | . . . . 1 . Best Kill Streak 7 | . 1 2 1 7 . Combat Bots Only 7 | . . 2 1 7 . Max Kills in Single Turn 1 | . 1 1 1 1 . Gunslinging . | . . . . . . Exploded . | . . . . . . Melee 1 | . . 1 1 1 . Uniques/NPCs Destroyed . | . . . . . . Combat | -11 -10 -9 -8 -8 -8 -------- Run | Scr Mat Mat Mat Gar Mat Damage Taken 2262 | . 199 216 42 1774 31 Core 642 | . 38 45 . 545 14 Absorbed by Shields 35 | . . . . 35 . Core Remaining (%) 90 | 100 84 88 . . . Volleys Fired 37 | . . . . 37 . Largest 2 | . . . . 2 . Hottest 65 | . . . . 65 . Shots Fired 49 | . . . . 49 . Gun 49 | . . . . 49 . Cannon . | . . . . . . Launcher . | . . . . . . Special . | . . . . . . Kinetic 45 | . . . . 45 . Thermal 4 | . . . . 4 . Explosive . | . . . . . . Electromagnetic . | . . . . . . Robot Hit Streak 8 | . . . . 8 . Robot Miss Streak 2 | . . . . 2 . Penetration Max . | . . . . . . Secondary Targets 3 | . . . . 3 . Max Gunslinging Chain 1 | . . . . 1 . Shots Hit Robots 44 | . . . 2 42 . Core Hits 26 | . 3 . 1 22 . Critical Hits . | . . . . . . Critical Kills . | . . . . . . Critical Parts Destroyed . | . . . . . . Melee Attacks 28 | . . . 2 23 3 Impact . | . . . . . . Slashing 28 | . . . 2 23 3 Piercing . | . . . . . . Sneak Attacks . | . . . . . . Combat Hostiles . | . . . . . . Follow-up Attacks . | . . . . . . Damage Inflicted 601 | . 15 7 63 516 . Guns 421 | . . . . 421 . Cannons . | . . . . . . Explosions . | . . . . . . Melee 154 | . . . 63 91 . Ramming 26 | . 15 7 . 4 . Kinetic 359 | . . . . 359 . Thermal 62 | . . . . 62 . Explosive . | . . . . . . Electromagnetic . | . . . . . . Impact . | . . . . . . Slashing 154 | . . . 63 91 . Piercing . | . . . . . . Highest Corruption . | . . . . . . Average Corruption . | . . . . . . Corruption Purged . | . . . . . . Overload Shots . | . . . . . . Overflow Damage . | . . . . . . Projectiles . | . . . . . . Explosions . | . . . . . . Melee . | . . . . . . Knockbacks . | . . . . . . Impact . | . . . . . . Kinetic . | . . . . . . Secondary . | . . . . . . Self-Inflicted Damage 7 | . 7 . . . . Shots . | . . . . . . Rammed 22 | . 3 13 . 6 . Targets Rammed 26 | . 3 15 . 8 . Kicked . | . . . . . . Crushed 4 | . . 2 . 2 . Highest Temperature 44 | . . . . 44 . Average Temperature 15 | . . . . 15 . Received Heat Transfer 675 | . 105 111 27 414 18 Siege Activations . | . . . . . . Robots Corrupted . | . . . . . . Combat Hostiles . | . . . . . . Parts Fried . | . . . . . . Impact Corruptions . | . . . . . . Robots Melted . | . . . . . . Combat Hostiles . | . . . . . . Parts Melted . | . . . . . . Heat Transferred 148 | . . . . 148 . Parts Sabotaged . | . . . . . . Parts Stolen . | . . . . . . Parts Stripped . | . . . . . . Power Chain Reactions . | . . . . . . Missiles Intercepted . | . . . . . . Alert | -11 -10 -9 -8 -8 -8 ------- Run | Scr Mat Mat Mat Gar Mat Peak Influence 327 | . 52 91 93 327 199 Average Influence 154 | . 9 69 54 239 176 Maximum Alert Level 1 | . . . . 1 . Low Security (%) 61 | 100 100 100 100 27 100 Level 1 38 | . . . . 72 . Level 2 . | . . . . . . Level 3 . | . . . . . . Level 4 . | . . . . . . Level 5 . | . . . . . . High Security . | . . . . . . Max Security . | . . . . . . Squads Dispatched 2 | . 1 1 . . . Investigation 1 | . . 1 . . . Extermination . | . . . . . . Reinforcement 1 | . 1 . . . . Assault . | . . . . . . Garrison . | . . . . . . Intercept . | . . . . . . Construction Impeded . | . . . . . . Haulers Reinforced . | . . . . . . Stealth | -11 -10 -9 -8 -8 -8 --------- Run | Scr Mat Mat Mat Gar Mat Distress Signals 1 | . 1 . . . . Communications Jammed . | . . . . . . Distress Signals . | . . . . . . Times Spotted 36 | . 12 5 2 13 4 Peak Tracking Total 9 | . 9 3 1 7 4 Tactical Retreats 2 | . 2 . . . . Traps | -11 -10 -9 -8 -8 -8 ------- Run | Scr Mat Mat Mat Gar Mat Traps Triggered 4 | . . 1 . 3 . Indirectly . | . . . . . . Trap Hack Attempts . | . . . . . . Triggered . | . . . . . . Disarmed . | . . . . . . Reprogrammed . | . . . . . . Reused . | . . . . . . Traps Extracted . | . . . . . . Installed . | . . . . . . Triggered . | . . . . . . Machines | -11 -10 -9 -8 -8 -8 ---------- Run | Scr Mat Mat Mat Gar Mat Machines Disabled . | . . . . . . Max in Single Turn . | . . . . . . Machines Sabotaged . | . . . . . . Garrisons Compromised . | . . . . . . Overloaded Fab Kills . | . . . . . . Fab Network Shutdowns . | . . . . . . Hacking | -11 -10 -9 -8 -8 -8 --------- Run | Scr Mat Mat Mat Gar Mat Machines Accessed 3 | . 1 . 1 . 1 Terminals 2 | . 1 . . . 1 Fabricators . | . . . . . . Repair Stations . | . . . . . . Recycling Units . | . . . . . . Scanalyzers . | . . . . . . Garrison Access 1 | . . . 1 . . Total Hacks 6 | . 2 . 1 . 3 Successful 2 | . . . 1 . 1 Failed 4 | . 2 . . . 2 Catastrophic 2 | . 1 . . . 1 Database Lockouts . | . . . . . . Manual 5 | . 2 . . . 3 Terminals 5 | . 2 . . . 3 Fabricators . | . . . . . . Repair Stations . | . . . . . . Recycling Units . | . . . . . . Scanalyzers . | . . . . . . Garrison Access 1 | . . . 1 . . Terminal Hacks 1 | . . . . . 1 Level Access Points 1 | . . . . . 1 Fabricator Hacks . | . . . . . . Repair Station Hacks . | . . . . . . Recycling Unit Hacks . | . . . . . . Scanalyzer . | . . . . . . Garrison Access Hacks 1 | . . . 1 . . Unlock Access 1 | . . . 1 . . Unauthorized Hacks . | . . . . . . Terminals . | . . . . . . Fabricators . | . . . . . . Repair Stations . | . . . . . . Recycling Units . | . . . . . . Scanalyzers . | . . . . . . Garrison Access . | . . . . . . Data Cores Recovered . | . . . . . . Used . | . . . . . . Hacking Detections 2 | . 1 . . . 1 Full Trace Events 1 | . 1 . . . . Feedback Events . | . . . . . . Feedback Blocked . | . . . . . . Robot Schematics Acquired . | . . . . . . Robots Built . | . . . . . . Matter . | . . . . . . Time . | . . . . . . Total Robot Build Rating . | . . . . . . Part Schematics Acquired . | . . . . . . Parts Built . | . . . . . . Matter . | . . . . . . Time . | . . . . . . Total Part Build Rating . | . . . . . . Parts Repaired . | . . . . . . Time . | . . . . . . Parts Recycled . | . . . . . . Recycled Matter . | . . . . . . Retrieved Matter . | . . . . . . Retrieved Components . | . . . . . . Parts Scanalyzed . | . . . . . . Part Schematics Acquired . | . . . . . . Parts Damaged . | . . . . . . Bothacking | -11 -10 -9 -8 -8 -8 ------------ Run | Scr Mat Mat Mat Gar Mat Used RIF Installer 1 | . . . . 1 . Robots Hacked . | . . . . . . Non-combat . | . . . . . . Combat . | . . . . . . Robot Hacks Applied . | . . . . . . Relay Couplers Released . | . . . . . . Robots Rewired . | . . . . . . Allies Hacked . | . . . . . . Hacks Repelled . | . . . . . . Allies | -11 -10 -9 -8 -8 -8 -------- Run | Scr Mat Mat Mat Gar Mat Total Allies . | . . . . . . Largest Group . | . . . . . . Highest-Rated Group . | . . . . . . Highest-Rated Ally . | . . . . . . Total Orders . | . . . . . . Ally Attacks . | . . . . . . Total Damage . | . . . . . . Kills . | . . . . . . Allies Corrupted . | . . . . . . Allies Melted . | . . . . . . Intel | -11 -10 -9 -8 -8 -8 ------- Run | Scr Mat Mat Mat Gar Mat Robot Analysis Total . | . . . . . . Derelict Logs Recovered . | . . . . . . Drone Launches . | . . . . . . Drone Recoveries . | . . . . . . Exploration | -11 -10 -9 -8 -8 -8 ------------- Run | Scr Mat Mat Mat Gar Mat Turns Passed 932 | 31 174 114 43 498 72 Spaces Moved 869 | 39 311 97 32 315 75 Core 704 | 36 311 82 32 205 38 Treads 27 | 3 . 15 . 9 . Legs 138 | . . . . 101 37 Wheels . | . . . . . . Hover . | . . . . . . Flight . | . . . . . . Fastest Speed 50 | 50 50 50 50 50 50 Average Speed 66 | 58 50 82 50 76 84 Slowest Speed 300 | 160 50 160 50 300 120 Overloaded Moves . | . . . . . . Propulsion Burnouts . | . . . . . . Robots Hopped . | . . . . . . Cave-ins Triggered . | . . . . . . Exploration Rate (%) 22 | 4 41 12 7 60 11 Regions Visited 5 Branch Regions . Pre-discovered Areas . | . . . . . . Known Exits Taken 1 | . . . 1 . . Unknown Exits Taken 3 | 1 1 1 . . . Scrap Searched . | . . . . . . Spaces Dug 13 | . . . . 10 3 Terrain Destroyed 13 | . . . . 10 3 Melee 13 | . . . . 10 3 Projectile . | . . . . . . AOE . | . . . . . . Actions | -11 -10 -9 -8 -8 -8 --------- Run | Scr Mat Mat Mat Gar Mat Total 1106 | 46 328 119 55 480 78 Wait 78 | . 6 . 17 55 . Move 865 | 38 310 96 32 314 75 Hop . | . . . . . . Pick Up 12 | 5 3 2 . 2 . Fast Attach 18 | 2 3 3 . 10 . Attach 8 | . . 2 2 4 . Detach 4 | . . . 1 3 . Swap 4 | . . . 1 3 . Drop 10 | 1 3 1 . 5 . Fire 37 | . . . . 37 . Melee 28 | . . . 2 23 3 Ram 3 | . 3 . . . . Kick . | . . . . . . Crush 23 | . . 15 . 8 . Escape Stasis 16 | . . . . 16 . Rewire . | . . . . . . Trap . | . . . . . . Miscellaneous . | . . . . . . Route ------- -11/Scrapyard -10/Materials -9/Materials -8/Materials -8/Garrison (discovered 3 exits: *Mat x3) -8/Materials (discovered 3 exits: Fac x3) History --------- Turn | Location | Event 11 | -11/Scrapyard | Discovered new exit (range 15) 32 | -11/Scrapyard | Entered Materials 197 | -10/Materials | Discovered new exit (range 12) 206 | -10/Materials | Entered another Materials area 206 | -9/Materials | Evolved 2 slots: Propulsion x2 300 | -9/Materials | Discovered new exit (range 20) 310 | -9/Materials | Build established: Mutant 320 | -9/Materials | Entered another Materials area 320 | -8/Materials | Evolved 2 slots: Propulsion x2 363 | -8/Materials | Identified exit to Garrison 363 | -8/Materials | Entered Garrison 543 | -8/Garrison | Destroyed 7 combat bots 550 | -8/Garrison | Core integrity fell below 50% 564 | -8/Garrison | Lost 11 parts (7n4w) 576 | -8/Garrison | Triggered checkpoint 579 | -8/Garrison | Discovered new exit (range 12) 606 | -8/Garrison | Triggered checkpoint 618 | -8/Garrison | Core integrity fell below 20% 724 | -8/Garrison | Discovered new exit (range 10) 832 | -8/Garrison | Discovered new exit (range 13) 856 | -8/Garrison | Installed Relay Interface Framework 861 | -8/Garrison | Entered Materials 867 | -8/Materials | Identified exit to Factory 933 | -8/Materials | Destroyed by G-47 Trooper with Particle Gun Last Messages --------------- 00714_ Field strength at 61. 00715_ Field strength at 34. 00716_ Field strength at 7. 00717_ Stasis field depleted. 00724_ EXIT=FOUND 00855_ Initiating installation procedure... 00856_ Relay Interface Framework installed. 00861_ Attempting to access garrison exit controls... RIF authorized. LOCATION=UNKNOWN GOAL=ESCAPE 00867_ Connecting with Terminal... 00867_ Current location identified: Materials >>Access(Main) Found 3 level access points to Factory: (84,93) (19,15) (14,87) Map updated. 00895_ K-01 Serf collects debris. Map ----- +----------------------------------------------------+ | ?????????????????????# !!# #???? | | ??????????????????########### #???? | | ??????????????????# ! # #???? | | ??????????????????# # #???? | | ??????????????????# + #???? | | ??????????????????# # #???? | | ??????????????????# # #???? | | ??????????????????# """ """?# #???? | | ??????????????????? """ """?# #???? | | ????????????????????""" ""??# #???? | | ?????????????????????##+##??# #???? | | ????????? ############ ##### #???? | | ????????? #???? | | ????????? #???? | | ????????? #???? | | ?????????????######### #### #???? | | ?????????????????????# #??# #???? | | ?????????????????????# #??# #???? | | ?????????############# #??# #???? | | ???????? #??# #???? | | ???????? #??# #???? | | ???????? #??# #???? | | ?????????#########+####+##??# #???? | | ????????????# g ##??# #???? | | ????????????# """ ;##?# #???? | | ????????????# """ #@#?# #???? | | ??????????????]! """ ## ## #???? | | ???????????? !]! #?### #???? | | ????????????#]!! [ #???# #???? | | ????????????# ! #???# #???? | | ????????????#############???# #???? | | ????????????????????????????# #???? | | ????????????????????????????# #???? | | ????????????????????????????# #???? | | ????????????????????????????+ #???? | | ????????????????????????????# #???? | | ?????????????????????????????## #???? | | ??????????????????????????????? #???? | | ??????????????????????????????? #???? | | ??????????????????????????????? #???? | | ????????????????????????????????#???? | | ????????????????????????????????????? | | ????????????????????????????????????? | | ????????????????????????????????????? | | ????????????????????????????????????? | | ????????????????????????????????????? | | ????????????????????????????????????? | | ????????????????????????????????????? | | ????????????????????????????????????? | | ????????????????????????????????????? | +----------------------------------------------------+ Best States ------------- Heat Dissipation 31 Energy Generation 10 Energy Capacity 250 Matter Stores 300 Matter Capacity 300 Sight Range 20 Terrain Scan Density 10 Additional Mass Support 6 Armor Coverage 450 Evasion (%) 50 Recoil Reduction 5 Item Schematics ----------------- None Robot Schematics ------------------ None Fabricated ------------ Nothing Alien Tech Used ----------------- None Achievements -------------- None Challenges ------------ None Game ------ Seed ZioniteTractorSword Manual? 0 Play Time 00:13:34 Cumulative 35.0 hours Start 2020.08.21 @ 11:42:25 End 2020.08.21 @ 12:05:33 Sessions 1 Manual Loads 0 Difficulty Rogue Special Mode None Game No. 59 Rogue 59 Adventurer 0 Explorer 0 Win Type - Total 1 Types 1/0/0/0/0/0/0 Lore% 33 Gallery% 44 Achievement% 37 Wizard Run 0 Options --------- ASCII 0 Keyboard 0 Movement Numpad Keybinds 0 Fullscreen 1 Font 18/Smallcaps Map View 76x50 Tactical HUD 1 Map Filters NONE Filters NONE Steam 1 RUN: 4df31e78-b942-4234-9bc9-1e7ca4b3eaf6